[Event "Pobeskydi 2026"]
[Site "Frydek-Mistek, Czech Republic"]
[Date "2026.04.06"]
[Round "9.5"]
[White "Sarkozi, Szabolcs"]
[Black "Szczygiel, Filip"]
[Result "1-0"]
[TimeControl "90 min+30s/move"]
[WhiteTitle "-"]
[BlackTitle "-"]
[WhiteFideId "14941660"]
[BlackFideId "41897307"]
[WhiteElo "2117"]
[BlackElo "1809"]

1. e4 {[%clk 01:28:32]} {[%emt 00:02:27]} g6 {[%clk 01:30:32]} {[%emt
00:00:29]} 2. d4 {[%clk 01:28:58]} {[%emt 00:00:04]} Bg7 {[%clk 01:30:54]}
{[%emt 00:00:07]} 3. Nc3 {[%clk 01:29:20]} {[%emt 00:00:08]} d6 {[%clk
01:30:46]} {[%emt 00:00:38]} 4. Nf3 {[%clk 01:29:25]} {[%emt 00:00:24]} a6
{[%clk 01:28:53]} {[%emt 00:02:24]} 5. Be3 {[%clk 01:29:43]} {[%emt 00:00:12]}
b5 {[%clk 01:28:10]} {[%emt 00:01:13]} 6. h4 {[%clk 01:25:38]} {[%emt
00:04:36]} h6 {[%clk 01:20:41]} {[%emt 00:07:58]} 7. Qd2 {[%clk 01:07:54]}
{[%emt 00:18:15]} Bb7 {[%clk 01:18:37]} {[%emt 00:02:33]} 8. e5 {[%clk
00:48:22]} {[%emt 00:20:02]} e6 {[%clk 00:46:41]} {[%emt 00:32:26]} 9. Bd3
{[%clk 00:44:11]} {[%emt 00:04:40]} Ne7 {[%clk 00:36:46]} {[%emt 00:10:25]} 10.
a4 {[%clk 00:36:05]} {[%emt 00:08:37]} b4 {[%clk 00:33:53]} {[%emt 00:03:23]}
11. Ne4 {[%clk 00:36:05]} {[%emt 00:00:30]} Nd5 {[%clk 00:33:52]} {[%emt
00:00:31]} 12. a5 {[%clk 00:32:37]} {[%emt 00:03:59]} Nxe3 {[%clk 00:29:24]}
{[%emt 00:04:56]} 13. fxe3 {[%clk 00:31:26]} {[%emt 00:01:42]} Bxe4 {[%clk
00:28:27]} {[%emt 00:01:27]} 14. Bxe4 {[%clk 00:31:55]} {[%emt 00:00:01]} d5
{[%clk 00:28:43]} {[%emt 00:00:15]} 15. Bd3 {[%clk 00:31:04]} {[%emt 00:01:20]}
c5 {[%clk 00:24:06]} {[%emt 00:05:06]} 16. c3 {[%clk 00:27:58]} {[%emt
00:03:37]} c4 {[%clk 00:16:50]} {[%emt 00:07:47]} 17. Bb1 {[%clk 00:25:38]}
{[%emt 00:02:49]} bxc3 {[%clk 00:11:21]} {[%emt 00:05:59]} 18. bxc3 {[%clk
00:22:01]} {[%emt 00:04:07]} Nc6 {[%clk 00:09:56]} {[%emt 00:01:54]} 19. h5
{[%clk 00:21:15]} {[%emt 00:01:17]} g5 {[%clk 00:09:51]} {[%emt 00:00:35]} 20.
O-O {[%clk 00:20:29]} {[%emt 00:01:16]} g4 {[%clk 00:07:29]} {[%emt 00:02:52]}
21. Nh2 {[%clk 00:18:23]} {[%emt 00:02:36]} Qg5 {[%clk 00:04:41]} {[%emt
00:03:18]} 22. Qf2 {[%clk 00:14:59]} {[%emt 00:03:54]} Ra7 {[%clk 00:03:50]}
{[%emt 00:01:21]} 23. Qg3 {[%clk 00:13:32]} {[%emt 00:01:57]} Qxh5 {[%clk
00:02:14]} {[%emt 00:02:05]} 24. Nxg4 {[%clk 00:11:12]} {[%emt 00:02:50]} Qg5
{[%clk 00:01:40]} {[%emt 00:01:05]} 25. Qf3 {[%clk 00:11:00]} {[%emt 00:00:42]}
Rg8 {[%clk 00:00:43]} {[%emt 00:01:26]} 26. Bh7 {[%clk 00:10:15]} {[%emt
00:01:15]} Rh8 {[%clk 00:01:08]} {[%emt 00:00:06]} 27. Bc2 {[%clk 00:10:33]}
{[%emt 00:00:12]} Kf8 {[%clk 00:00:59]} {[%emt 00:00:38]} 28. e4 {[%clk
00:08:05]} {[%emt 00:03:00]} h5 {[%clk 00:00:46]} {[%emt 00:00:42]} 29. Nf2
{[%clk 00:06:46]} {[%emt 00:01:49]} Qd2 {[%clk 00:00:34]} {[%emt 00:00:41]} 30.
exd5 {[%clk 00:05:37]} {[%emt 00:01:40]} Nxd4 {[%clk 00:00:49]} {[%emt
00:00:14]} 31. cxd4 {[%clk 00:05:39]} {[%emt 00:00:29]} Qxc2 {[%clk 00:01:13]}
{[%emt 00:00:06]} 32. Rab1 {[%clk 00:02:56]} {[%emt 00:03:13]} exd5 {[%clk
00:00:33]} {[%emt 00:01:10]} 33. Qxd5 {[%clk 00:02:22]} {[%emt 00:01:03]} Kg8
{[%clk 00:00:34]} {[%emt 00:00:30]} 34. Ne4 {[%clk 00:01:51]} {[%emt 00:01:02]}
Rh6 {[%clk 00:00:34]} {[%emt 00:00:30]} 35. Rb8+ {[%clk 00:01:44]} {[%emt
00:00:37]} Kh7 {[%clk 00:00:50]} {[%emt 00:00:13]} 36. Ng5+ {[%clk 00:01:57]}
{[%emt 00:00:17]} Kg6 {[%clk 00:00:41]} {[%emt 00:00:38]} 37. Nxf7 {[%clk
00:01:51]} {[%emt 00:00:37]} Rxf7 {[%clk 00:00:35]} {[%emt 00:00:37]} 38. Qxf7+
{[%clk 00:02:19]} {[%emt 00:00:02]} Kh7 {[%clk 00:00:50]} {[%emt 00:00:14]} 39.
Qg8+ {[%clk 00:02:35]} {[%emt 00:00:14]} Kg6 {[%clk 00:01:13]} {[%emt
00:00:07]} 40. Rb6+ {[%clk 00:02:51]} {[%emt 00:00:15]} 1-0

[Event "Pobeskydi 2026"]
[Site "Frydek-Mistek, Czech Republic"]
[Date "2026.04.06"]
[Round "9.6"]
[White "Skorupa, Tobias"]
[Black "Boff, Ondrej"]
[Result "1/2-1/2"]
[TimeControl "90 min+30s/move"]
[WhiteTitle "-"]
[BlackTitle "-"]
[WhiteFideId "23777494"]
[BlackFideId "23733950"]
[WhiteElo "1859"]
[BlackElo "2101"]

1. d4 {[%clk 01:30:55]} {[%emt 00:00:04]} Nf6 {[%clk 01:30:32]} {[%emt
00:00:28]} 2. c4 {[%clk 01:31:01]} {[%emt 00:00:24]} c5 {[%clk 01:30:44]}
{[%emt 00:00:18]} 3. d5 {[%clk 01:31:25]} {[%emt 00:00:06]} b5 {[%clk
01:30:26]} {[%emt 00:00:48]} 4. cxb5 {[%clk 01:31:40]} {[%emt 00:00:15]} a6
{[%clk 01:30:43]} {[%emt 00:00:13]} 5. b6 {[%clk 01:29:54]} {[%emt 00:02:17]}
e6 {[%clk 01:30:18]} {[%emt 00:00:55]} 6. e4 {[%clk 01:28:22]} {[%emt
00:02:01]} Qxb6 {[%clk 01:18:48]} {[%emt 00:12:01]} 7. Nc3 {[%emt 00:01:40]}
Bb7 {[%clk 01:13:44]} {[%emt 00:05:31]} 8. Bc4 {[%clk 01:24:54]} {[%emt
00:02:50]} exd5 {[%clk 01:06:12]} {[%emt 00:08:03]} 9. exd5 {[%clk 01:23:15]}
{[%emt 00:02:08]} Be7 {[%clk 01:03:28]} {[%emt 00:03:14]} 10. Bf4 {[%clk
01:17:18]} {[%emt 00:06:28]} d6 {[%clk 00:59:50]} {[%emt 00:04:08]} 11. Nge2
{[%clk 01:13:56]} {[%emt 00:03:51]} O-O {[%clk 00:56:41]} {[%emt 00:03:39]} 12.
O-O {[%clk 01:09:58]} {[%emt 00:04:27]} Nh5 {[%clk 00:50:57]} {[%emt 00:06:14]}
13. Be3 {[%clk 01:06:39]} {[%emt 00:03:50]} Qc7 {[%clk 00:49:03]} {[%emt
00:02:23]} 14. g4 {[%clk 01:00:02]} {[%emt 00:07:08]} Nf6 {[%clk 00:48:21]}
{[%emt 00:01:12]} 15. Ng3 {[%clk 00:59:53]} {[%emt 00:00:39]} Re8 {[%clk
00:39:49]} {[%emt 00:09:02]} 16. g5 {[%clk 00:51:46]} {[%emt 00:08:37]} Nfd7
{[%clk 00:39:31]} {[%emt 00:00:49]} 17. Qa4 {[%clk 00:50:49]} {[%emt 00:01:27]}
Qd8 {[%clk 00:34:39]} {[%emt 00:05:22]} 18. Nf5 {[%clk 00:45:55]} {[%emt
00:05:23]} Nb6 {[%clk 00:30:37]} {[%emt 00:04:33]} 19. Nxe7+ {[%clk 00:45:33]}
{[%emt 00:00:52]} Qxe7 {[%clk 00:30:52]} {[%emt 00:00:14]} 20. Qb3 {[%clk
00:45:28]} {[%emt 00:00:36]} Nxc4 {[%clk 00:31:00]} {[%emt 00:00:21]} 21. Qxc4
{[%clk 00:45:54]} {[%emt 00:00:04]} Nd7 {[%clk 00:31:06]} {[%emt 00:00:24]} 22.
Rfe1 {[%clk 00:41:20]} {[%emt 00:05:05]} Ne5 {[%clk 00:28:23]} {[%emt
00:03:13]} 23. Qe4 {[%clk 00:40:40]} {[%emt 00:01:09]} Qd7 {[%clk 00:26:12]}
{[%emt 00:02:41]} 24. Kh1 {[%clk 00:34:53]} {[%emt 00:06:18]} Re7 {[%clk
00:17:07]} {[%emt 00:09:34]} 25. Rg1 {[%clk 00:30:49]} {[%emt 00:04:34]} Rae8
{[%clk 00:15:56]} {[%emt 00:01:41]} 26. Rad1 {[%clk 00:29:13]} {[%emt
00:02:06]} Ng6 {[%clk 00:14:27]} {[%emt 00:01:59]} 27. Qg4 {[%clk 00:27:42]}
{[%emt 00:02:01]} Qc7 {[%clk 00:13:36]} {[%emt 00:01:21]} 28. Rd2 {[%clk
00:25:19]} {[%emt 00:02:54]} Bc8 {[%clk 00:12:50]} {[%emt 00:01:16]} 29. Qa4
{[%clk 00:25:11]} {[%emt 00:00:38]} Qb6 {[%clk 00:09:53]} {[%emt 00:03:26]} 30.
Qc6 {[%clk 00:23:45]} {[%emt 00:01:56]} Qd8 {[%clk 00:07:13]} {[%emt 00:03:10]}
31. Qa4 {[%clk 00:22:38]} {[%emt 00:01:37]} Kh8 {[%clk 00:03:45]} {[%emt
00:03:58]} 32. Rg3 {[%clk 00:21:16]} {[%emt 00:01:52]} Rb7 {[%clk 00:02:45]}
{[%emt 00:01:30]} 33. a3 {[%clk 00:19:18]} {[%emt 00:02:29]} a5 {[%clk
00:02:53]} {[%emt 00:00:21]} 34. Qc4 {[%clk 00:14:15]} {[%emt 00:05:33]} Bf5
{[%clk 00:01:49]} {[%emt 00:01:34]} 35. Qe2 {[%clk 00:12:12]} {[%emt 00:02:33]}
Qe7 {[%clk 00:01:28]} {[%emt 00:00:51]} 36. Qa6 {[%clk 00:11:49]} {[%emt
00:00:52]} Ra7 {[%clk 00:00:59]} {[%emt 00:01:00]} 37. Qb6 {[%clk 00:11:35]}
{[%emt 00:00:44]} Ne5 {[%clk 00:00:56]} {[%emt 00:00:33]} 38. Qb5 {[%clk
00:10:10]} {[%emt 00:01:55]} Rb7 {[%clk 00:00:55]} {[%emt 00:00:32]} 39. Qe2
{[%clk 00:10:15]} {[%emt 00:00:24]} Qd7 {[%clk 00:00:56]} {[%emt 00:00:29]} 40.
Qf1 {[%clk 00:09:17]} {[%emt 00:01:29]} Reb8 {[%clk 00:00:58]} {[%emt
00:00:28]} 41. Qe2 {[%clk 00:08:38]} {[%emt 00:01:08]} Re8 {[%clk 00:00:53]}
{[%emt 00:00:35]} 42. Qf1 {[%clk 00:08:39]} {[%emt 00:00:29]} c4 {[%clk
00:00:50]} {[%emt 00:00:33]} 43. Bd4 {[%clk 00:07:35]} {[%emt 00:01:34]} Bd3
{[%clk 00:00:49]} {[%emt 00:00:31]} 44. Qg2 {[%clk 00:07:00]} {[%emt 00:01:05]}
Ng6 {[%clk 00:00:57]} {[%emt 00:00:21]} 45. Re3 {[%clk 00:07:05]} {[%emt
00:00:26]} Rxe3 {[%clk 00:00:52]} {[%emt 00:00:35]} 46. fxe3 {[%clk 00:07:00]}
{[%emt 00:00:35]} Nh4 {[%clk 00:00:58]} {[%emt 00:00:24]} 47. Qf2 {[%clk
00:06:02]} {[%emt 00:01:29]} Nf5 {[%clk 00:00:43]} {[%emt 00:00:45]} 48. Ne2
{[%clk 00:05:32]} {[%emt 00:01:00]} Be4+ {[%clk 00:00:42]} {[%emt 00:00:30]} 49.
Kg1 {[%clk 00:06:00]} {[%emt 00:00:02]} Nxd4 {[%clk 00:00:48]} {[%emt
00:00:24]} 50. Nxd4 {[%clk 00:06:08]} {[%emt 00:00:22]} Qg4+ {[%clk 00:00:41]}
{[%emt 00:00:36]} 51. Qg3 {[%clk 00:06:24]} {[%emt 00:00:14]} Qxg3+ 52. hxg3
{[%clk 00:06:53]} g6 {[%clk 00:00:54]} {[%emt 00:00:18]} 53. Ne2 {[%clk
00:06:38]} {[%emt 00:00:45]} Re7 {[%clk 00:00:51]} {[%emt 00:00:32]} 54. Rd4
{[%clk 00:06:09]} {[%emt 00:00:59]} Bd3 {[%clk 00:01:10]} {[%emt 00:00:11]} 55.
Kf2 {[%clk 00:06:34]} {[%emt 00:00:05]} Re5 {[%clk 00:01:06]} {[%emt 00:00:34]}
56. Nf4 {[%clk 00:06:51]} {[%emt 00:00:14]} Be4 {[%clk 00:00:42]} {[%emt
00:00:53]} 57. Rxc4 {[%clk 00:06:43]} {[%emt 00:00:39]} Bxd5 {[%clk 00:01:04]}
{[%emt 00:00:07]} 58. Rd4 {[%clk 00:06:35]} {[%emt 00:00:38]} Bb3 {[%clk
00:01:15]} {[%emt 00:00:19]} 59. Rxd6 {[%clk 00:06:41]} {[%emt 00:00:25]} Rxg5
{[%clk 00:01:38]} {[%emt 00:00:06]} 60. Rb6 {[%clk 00:06:33]} {[%emt 00:00:38]}
a4 {[%clk 00:01:10]} {[%emt 00:00:58]} 61. Rd6 {[%clk 00:05:37]} {[%emt
00:01:26]} Rc5 {[%clk 00:01:10]} {[%emt 00:00:30]} 62. Rd2 {[%clk 00:05:18]}
{[%emt 00:00:50]} Kg7 {[%clk 00:01:23]} {[%emt 00:00:16]} 63. Ne2 {[%clk
00:04:37]} {[%emt 00:01:12]} Rf5+ {[%clk 00:01:29]} {[%emt 00:00:24]} 64. Kg2
{[%emt 00:01:34]} h5 {[%clk 00:00:52]} {[%emt 00:00:48]} 65. Nc3 {[%clk
00:03:34]} {[%emt 00:00:48]} Re5 {[%clk 00:00:46]} {[%emt 00:00:34]} 66. Kf2
{[%clk 00:03:49]} {[%emt 00:00:16]} Rf5+ {[%clk 00:00:43]} {[%emt 00:00:34]}
1/2-1/2

[Event "Pobeskydi 2026"]
[Site "Frydek-Mistek, Czech Republic"]
[Date "2026.04.06"]
[Round "9.7"]
[White "Janovicek, Lukas"]
[Black "Kendall, Arthur"]
[Result "0-1"]
[TimeControl "90 min+30s/move"]
[WhiteTitle "-"]
[BlackTitle "-"]
[WhiteFideId "14975831"]
[BlackFideId "343410960"]
[WhiteElo "1846"]
[BlackElo "2032"]

1. e4 {[%clk 01:30:54]} {[%emt 00:00:04]} e6 {[%clk 01:30:46]} {[%emt
00:00:15]} 2. d4 {[%clk 01:30:50]} {[%emt 00:00:34]} d5 {[%clk 01:31:15]}
{[%emt 00:00:01]} 3. exd5 {[%clk 01:31:07]} {[%emt 00:00:14]} exd5 {[%clk
01:31:30]} {[%emt 00:00:14]} 4. Nf3 {[%clk 01:31:19]} {[%emt 00:00:18]} Nc6
{[%clk 01:30:41]} {[%emt 00:01:19]} 5. Bd3 {[%clk 01:30:29]} {[%emt 00:01:20]}
Bd6 {[%clk 01:27:16]} {[%emt 00:03:54]} 6. O-O {[%clk 01:27:57]} {[%emt
00:03:03]} Bg4 {[%clk 01:26:38]} {[%emt 00:01:07]} 7. c3 {[%clk 01:26:18]}
{[%emt 00:02:10]} Qd7 {[%clk 01:25:26]} {[%emt 00:01:41]} 8. Re1+ {[%clk
01:23:47]} {[%emt 00:03:02]} Nge7 {[%clk 01:25:47]} {[%emt 00:00:09]} 9. Nbd2
{[%clk 01:23:54]} {[%emt 00:00:23]} O-O {[%clk 01:23:29]} {[%emt 00:02:48]} 10.
Qc2 {[%clk 01:16:09]} {[%emt 00:08:15]} Bf5 {[%clk 01:16:17]} {[%emt 00:07:42]}
11. Nf1 {[%clk 01:08:56]} {[%emt 00:07:42]} Rae8 {[%clk 01:04:49]} {[%emt
00:11:57]} 12. Bd2 {[%clk 01:01:59]} {[%emt 00:07:29]} Bxd3 {[%clk 00:54:23]}
{[%emt 00:10:56]} 13. Qxd3 {[%clk 01:01:46]} {[%emt 00:00:43]} Qf5 {[%clk
00:40:06]} {[%emt 00:14:47]} 14. Qxf5 {[%clk 00:59:59]} {[%emt 00:02:17]} Nxf5
{[%clk 00:39:42]} {[%emt 00:00:54]} 15. Ne3 {[%clk 00:54:05]} {[%emt 00:06:23]}
Nxe3 {[%clk 00:39:34]} {[%emt 00:00:39]} 16. Rxe3 {[%clk 00:53:57]} {[%emt
00:00:39]} f6 {[%clk 00:36:47]} {[%emt 00:03:15]} 17. Rae1 {[%clk 00:50:07]}
{[%emt 00:04:20]} Kf7 {[%clk 00:36:32]} {[%emt 00:00:44]} 18. Kf1 {[%clk
00:47:23]} {[%emt 00:03:15]} Ne7 {[%clk 00:34:22]} {[%emt 00:02:41]} 19. g3
{[%clk 00:40:01]} {[%emt 00:07:53]} g5 {[%clk 00:27:32]} {[%emt 00:07:19]} 20.
R1e2 {[%clk 00:35:51]} {[%emt 00:04:39]} h5 {[%clk 00:23:22]} {[%emt 00:04:41]}
21. Bc1 {[%clk 00:25:41]} {[%emt 00:10:41]} Ng6 {[%clk 00:18:08]} {[%emt
00:05:43]} 22. Rxe8 {[%clk 00:23:20]} {[%emt 00:02:50]} Rxe8 {[%clk 00:18:35]}
{[%emt 00:00:03]} 23. Rxe8 {[%clk 00:23:32]} {[%emt 00:00:19]} Kxe8 {[%clk
00:18:59]} {[%emt 00:00:05]} 24. Ke2 {[%clk 00:23:05]} {[%emt 00:00:57]} Kd7
{[%clk 00:15:31]} {[%emt 00:03:57]} 25. Ne1 {[%clk 00:21:45]} {[%emt 00:01:53]}
b6 {[%clk 00:13:06]} {[%emt 00:02:55]} 26. Nc2 {[%clk 00:21:17]} {[%emt
00:00:57]} Ke6 {[%clk 00:12:24]} {[%emt 00:01:11]} 27. b3 {[%clk 00:18:46]}
{[%emt 00:03:03]} c6 {[%clk 00:09:49]} {[%emt 00:03:05]} 28. Ba3 {[%clk
00:17:21]} {[%emt 00:01:55]} Bxa3 {[%clk 00:08:20]} {[%emt 00:01:59]} 29. Nxa3
{[%clk 00:17:36]} {[%emt 00:00:15]} f5 {[%clk 00:08:25]} {[%emt 00:00:24]} 30.
Nc2 {[%clk 00:16:24]} {[%emt 00:01:42]} f4 {[%clk 00:04:49]} {[%emt 00:04:05]}
31. Ne1 {[%clk 00:11:10]} {[%emt 00:05:45]} Kf5 {[%clk 00:03:55]} {[%emt
00:01:25]} 32. h3 {[%clk 00:08:51]} {[%emt 00:02:49]} fxg3 {[%clk 00:02:55]}
{[%emt 00:01:29]} 33. fxg3 {[%clk 00:08:57]} {[%emt 00:00:24]} g4 {[%clk
00:02:10]} {[%emt 00:01:15]} 34. hxg4+ {[%clk 00:06:40]} {[%emt 00:02:47]} hxg4
{[%clk 00:02:14]} {[%emt 00:00:25]} 35. Nd3 {[%clk 00:06:14]} {[%emt 00:00:58]}
Ne7 {[%clk 00:01:38]} {[%emt 00:01:03]} 36. Nf4 {[%clk 00:05:00]} {[%emt
00:01:47]} Nc8 {[%clk 00:01:00]} {[%emt 00:01:06]} 37. Ke3 {[%clk 00:04:16]}
{[%emt 00:01:14]} Nd6 {[%clk 00:01:01]} {[%emt 00:00:30]} 38. Ne2 {[%clk
00:03:26]} {[%emt 00:01:20]} c5 {[%clk 00:01:21]} {[%emt 00:00:10]} 39. dxc5
{[%clk 00:02:18]} {[%emt 00:01:39]} bxc5 {[%clk 00:01:49]} {[%emt 00:00:01]} 40.
Nf4 {[%clk 00:02:25]} {[%emt 00:00:23]} Ne4 {[%clk 00:01:37]} {[%emt 00:00:41]}
41. Ne2 {[%clk 00:01:06]} {[%emt 00:01:50]} Ke5 {[%clk 00:01:47]} {[%emt
00:00:20]} 42. Kd3 {[%clk 00:01:07]} {[%emt 00:00:29]} Kf5 {[%clk 00:02:01]}
{[%emt 00:00:16]} 43. b4 {[%clk 00:01:07]} {[%emt 00:00:31]} Ke5 {[%clk
00:01:33]} {[%emt 00:00:57]} 44. bxc5 {[%clk 00:01:24]} {[%emt 00:00:13]} Nxc5+
{[%clk 00:01:46]} {[%emt 00:00:16]} 45. Ke3 {[%clk 00:01:43]} {[%emt 00:00:11]}
Ne4 {[%clk 00:02:07]} {[%emt 00:00:09]} 46. Kd3 {[%clk 00:01:42]} {[%emt
00:00:30]} a6 {[%clk 00:02:15]} {[%emt 00:00:23]} 47. Ke3 {[%clk 00:01:28]}
{[%emt 00:00:44]} Nxc3 {[%clk 00:02:17]} {[%emt 00:00:28]} 48. Nxc3 {[%clk
00:00:44]} {[%emt 00:01:14]} d4+ {[%clk 00:02:45]} {[%emt 00:00:01]} 49. Kd3
{[%clk 00:01:06]} {[%emt 00:00:09]} dxc3 {[%clk 00:03:11]} {[%emt 00:00:04]} 50.
Kxc3 {[%clk 00:01:32]} {[%emt 00:00:05]} Ke4 {[%clk 00:03:16]} {[%emt
00:00:23]} 51. Kb4 {[%clk 00:01:27]} {[%emt 00:00:35]} Kf3 {[%clk 00:03:43]}
{[%emt 00:00:03]} 52. Ka5 {[%clk 00:01:48]} {[%emt 00:00:10]} Kxg3 {[%clk
00:04:09]} {[%emt 00:00:04]} 53. Kxa6 {[%clk 00:02:13]} {[%emt 00:00:06]} Kf4
{[%clk 00:04:03]} {[%emt 00:00:35]} 54. a4 {[%clk 00:02:38]} {[%emt 00:00:06]}
g3 {[%clk 00:04:30]} {[%emt 00:00:02]} 55. a5 {[%emt 00:00:12]} g2 {[%clk
00:04:56]} {[%emt 00:00:02]} 56. Kb7 {[%clk 00:02:59]} {[%emt 00:00:30]} g1=Q
{[%clk 00:05:20]} {[%emt 00:00:05]} 57. a6 {[%clk 00:03:20]} {[%emt 00:00:10]}
Qg7+ {[%clk 00:05:37]} {[%emt 00:00:11]} 58. Ka8 {[%clk 00:03:15]} {[%emt
00:00:36]} Qf8+ {[%emt 00:01:00]} 59. Kb7 {[%clk 00:02:48]} {[%emt 00:00:02]}
Qe7+ {[%clk 00:06:13]} {[%emt 00:00:19]} 60. Ka8 {[%clk 00:02:44]} {[%emt
00:00:34]} Qd8+ {[%clk 00:06:40]} {[%emt 00:00:03]} 61. Ka7 {[%clk 00:02:41]}
{[%emt 00:00:33]} Qc8 {[%clk 00:07:00]} {[%emt 00:00:10]} 62. Kb6 {[%clk
00:03:02]} {[%emt 00:00:09]} Qd8+ {[%emt 00:00:33]} 63. Kb7 Qd7+ {[%emt
00:00:01]} 64. Kb8 {[%emt 00:00:06]} Qb5+ {[%emt 00:00:02]} 65. Ka7 {[%emt
00:00:02]} Ke5 {[%emt 00:00:05]} 66. Ka8 {[%emt 00:00:08]} 0-1